bitfinex-derivatives/quotes_BTCF0:USTF0_20260106
["timestamp","ask_amount","ask_price","bid_price","bid_amount"]
[1767677660085,0.10135,93732.0,93713.0,0.010672]
[1767677661786,0.09072,93731.0,93713.0,0.010672]
[1767677662383,0.09072,93731.0,93710.0,0.06558518]
[1767677663088,0.09072,93731.0,93714.0,0.010672]
[1767677663576,0.10139,93731.0,93711.0,0.010672]
[1767677664288,0.01067,93729.0,93711.0,0.010672]
[1767677664787,0.18859477,93731.0,93713.0,0.010672]
[1767677665387,0.01067,93730.0,93713.0,0.010672]
[1767677665777,0.18859477,93731.0,93713.0,0.010672]
[1767677666881,0.18859477,93731.0,93710.0,0.06558518]
[1767677666882,0.18859477,93731.0,93716.0,0.010672]
[1767677667185,0.18859477,93731.0,93713.0,0.010672]
[1767677667386,0.19926477,93731.0,93710.0,0.06225718]
[1767677668191,0.19926477,93731.0,93713.0,0.010672]
[1767677669593,0.09787477,93730.0,93713.0,0.010672]
[1767677670494,0.09072,93729.0,93713.0,0.010672]
[1767677673892,0.09363004,93736.0,93710.0,0.06225718]
[1767677674091,0.09072,93735.0,93719.0,0.010671]
[1767677674594,0.18435004,93735.0,93719.0,0.010671]
[1767677675191,0.18435004,93735.0,93715.0,0.05210656]
[1767677675495,0.09363004,93734.0,93715.0,0.05210656]
[1767677676397,0.09363004,93734.0,93719.0,0.010671]
[1767677680798,0.01529019,93733.0,93719.0,0.010671]
[1767677680997,0.09363004,93732.0,93719.0,0.010671]
[1767677681198,0.09363004,93732.0,93716.0,0.010672]
[1767677682902,0.09363004,93732.0,93710.0,0.03964393]
[1767677683901,0.09363004,93732.0,93710.0,0.11634202]
[1767677684102,0.09363004,93732.0,93714.0,0.07669809]
[1767677684296,0.09363004,93732.0,93717.0,0.010671]
[1767677687810,0.10892023,93732.0,93717.0,0.010671]
[1767677688212,0.09363004,93730.0,93714.0,0.08737009]
[1767677688911,0.10892023,93730.0,93714.0,0.08737009]
[1767677690213,0.01067,93729.0,93714.0,0.07669809]
[1767677690511,0.01067,93729.0,93713.0,0.06769809]
[1767677690810,0.10892023,93728.0,93710.0,0.09072]
[1767677691010,0.010671,93724.0,93710.0,0.09072]
[1767677691211,0.10892023,93716.0,93706.0,0.08417098]
[1767677691407,0.00702421,93716.0,93704.0,0.09601537]
[1767677691607,0.010671,93724.0,93704.0,0.010673]
[1767677692008,0.010671,93722.0,93703.0,0.06007466]
[1767677692208,0.010671,93722.0,93701.0,0.010673]
[1767677692209,0.010671,93722.0,93701.0,0.10668837]
[1767677692513,0.010671,93718.0,93701.0,0.15394964]
[1767677692716,0.010671,93718.0,93701.0,0.05793427]
[1767677693016,0.010671,93718.0,93700.0,0.27278872]
[1767677693213,0.010671,93718.0,93701.0,0.4]
[1767677693914,0.010672,93716.0,93700.0,0.24618958]
[1767677695222,0.11679057,93716.0,93700.0,0.23655659]
[1767677695416,0.10127041,93716.0,93700.0,0.23655659]
[1767677696417,0.09059841,93716.0,93700.0,0.23655659]
[1767677697014,0.010672,93715.0,93700.0,0.23655659]
[1767677697720,0.09059841,93716.0,93700.0,0.23655659]
[1767677698321,0.09059841,93716.0,93700.0,0.22755659]
[1767677698722,0.09059841,93716.0,93700.0,0.16777335]
[1767677698924,0.010672,93713.0,93700.0,0.16777335]
[1767677699221,0.10611857,93716.0,93700.0,0.16777335]
[1767677699222,0.11679057,93716.0,93700.0,0.16777335]
[1767677699424,0.10127041,93716.0,93700.0,0.16777335]
[1767677700523,0.10127041,93716.0,93703.0,0.07678824]
[1767677700824,0.00016,93717.0,93703.0,0.07678824]
[1767677701417,0.010672,93716.0,93702.0,0.07678824]
[1767677701612,0.10426441,93716.0,93702.0,0.07678824]
[1767677701829,0.12070707,93716.0,93702.0,0.07678824]
[1767677702025,0.09359241,93707.0,93701.0,0.07678824]
[1767677702325,0.010672,93710.0,93700.0,0.08172]
[1767677702726,0.010673,93708.0,93700.0,0.08172]
[1767677703423,0.010672,93709.0,93693.0,0.00012621]
[1767677703619,0.010672,93712.0,93693.0,0.00012621]
[1767677704221,0.01644266,93710.0,93693.0,0.00012621]
[1767677704522,0.11003507,93707.0,93693.0,0.08609206]
[1767677704724,0.09072,93715.0,93682.0,0.05]
[1767677704725,0.01644266,93700.0,93682.0,0.05]
[1767677704930,0.11003507,93695.0,93682.0,0.02032893]
[1767677705127,0.01644266,93694.0,93682.0,0.02032893]
[1767677705726,0.00010248,93693.0,93682.0,0.02032893]
[1767677706117,0.01654514,93693.0,93682.0,0.00332893]
[1767677706322,0.01644266,93692.0,93682.0,0.00332893]
[1767677706622,0.00010248,93693.0,93682.0,0.00332893]
[1767677710929,0.09072,93700.0,93684.0,0.01522562]
[1767677711133,0.09072,93699.0,93688.0,0.09848507]
[1767677711325,0.09072,93699.0,93683.0,0.09267627]
[1767677712134,0.02711566,93701.0,93683.0,0.09267627]
[1767677712432,0.09072,93708.0,93696.0,0.01522562]
[1767677712637,0.09072,93709.0,93698.0,0.09848507]
[1767677712935,0.41644266,93714.0,93696.0,0.01522562]
[1767677713129,0.4,93717.0,93699.0,0.09848507]
[1767677713326,0.10716266,93716.0,93699.0,0.09848507]
[1767677713730,0.01644266,93715.0,93699.0,0.09448507]
[1767677714433,0.09848507,93720.0,93687.0,0.09072]
[1767677714434,0.010671,93720.0,93705.0,0.11371069]
[1767677714734,0.010671,93720.0,93705.0,0.01522562]
[1767677715128,0.09072,93722.0,93705.0,0.01522562]
[1767677715324,0.01644266,93730.0,93711.0,0.01522562]
[1767677715526,0.01644266,93730.0,93705.0,0.02589862]
[1767677715527,0.01644266,93725.0,93705.0,0.02589862]
[1767677716525,0.010671,93722.0,93703.0,0.09267627]
[1767677716832,0.09072,93729.0,93700.0,0.09848507]
[1767677716833,0.01644266,93719.0,93700.0,0.09848507]
[1767677717036,0.01644266,93723.0,93703.0,0.02589862]
[1767677717236,0.01644266,93723.0,93704.0,0.01522562]
[1767677717437,0.02711366,93722.0,93704.0,0.01522562]
[1767677718637,0.12070607,93722.0,93702.0,0.09267627]
[1767677719941,0.11003507,93722.0,93702.0,0.09267627]
[1767677720335,0.010671,93721.0,93702.0,0.09267627]
[1767677720535,0.11003507,93720.0,93701.0,0.010673]
[1767677721538,0.010671,93719.0,93700.0,0.09948801]
[1767677721738,0.02711366,93719.0,93700.0,0.09948801]
[1767677722338,0.02711366,93719.0,93701.0,0.01056999]
[1767677723133,0.01644266,93719.0,93704.0,0.010673]
[1767677723340,0.09359241,93720.0,93704.0,0.010673]
[1767677727144,0.09359241,93722.0,93710.0,0.09848507]
[1767677727347,0.11003507,93722.0,93710.0,0.09848507]
[1767677727848,0.01644266,93719.0,93704.0,0.010673]
[1767677728056,0.01644266,93718.0,93709.0,0.09848507]
[1767677728235,0.01644266,93718.0,93701.0,0.010673]
[1767677728942,0.09359241,93719.0,93701.0,0.010673]
[1767677729247,0.09359241,93719.0,93709.0,0.09848507]
[1767677730335,0.01644266,93711.0,93700.0,0.09848507]
[1767677730541,0.01644266,93710.0,93700.0,0.09848507]
[1767677730743,0.09359241,93711.0,93700.0,0.09848507]
[1767677731251,0.01644266,93714.0,93700.0,0.09848507]
[1767677732347,0.0912539,93717.0,93700.0,0.09848507]
[1767677732650,0.0912539,93717.0,93697.0,0.09072]
[1767677732651,0.010671,93726.0,93709.0,0.00950486]
[1767677732842,0.010671,93726.0,93710.0,0.09848507]
[1767677733037,0.11733271,93729.0,93710.0,0.09848507]
[1767677733248,0.10666271,93729.0,93710.0,0.10782257]
[1767677733546,0.01067,93728.0,93710.0,0.11849457]
[1767677733852,0.10719661,93727.0,93710.0,0.09848507]
[1767677734046,0.01594271,93726.0,93710.0,0.09848507]
[1767677736946,0.0912539,93727.0,93710.0,0.08048507]
[1767677737151,0.10719661,93727.0,93710.0,0.08048507]
[1767677737450,0.02661371,93722.0,93710.0,0.09848507]
[1767677737651,0.01594271,93721.0,93701.0,0.010673]
[1767677737951,0.01594271,93721.0,93710.0,0.09848507]
[1767677738353,0.10719661,93718.0,93698.0,0.010674]
[1767677738554,0.10719661,93718.0,93710.0,0.09848507]
[1767677738749,0.10719661,93718.0,93699.0,0.00969951]
[1767677738952,0.10719661,93718.0,93700.0,0.10818458]
[1767677739652,0.01594271,93722.0,93702.0,0.0095315]
[1767677739852,0.10719661,93724.0,93702.0,0.1062179]
[1767677740063,0.01594271,93723.0,93710.0,0.09848507]
[1767677741051,0.010671,93722.0,93710.0,0.09848507]
[1767677741254,0.01594271,93720.0,93701.0,0.010673]
[1767677741456,0.01594271,93720.0,93710.0,0.09848507]
[1767677743353,0.0912539,93721.0,93710.0,0.09848507]
[1767677744555,0.0912539,93721.0,93710.0,0.08648507]
[1767677745457,0.09848507,93730.0,93710.0,0.08648507]
[1767677745458,0.01594271,93742.0,93718.0,0.00802277]
[1767677745663,0.09072,93745.0,93707.0,0.00802277]
[1767677745664,0.10719661,93737.0,93707.0,0.00802277]
[1767677745861,0.01067,93731.0,93720.0,0.09848507]
[1767677748250,0.01067,93731.0,93712.0,0.00798388]
[1767677749860,0.01067,93731.0,93720.0,0.09848507]
[1767677750359,0.01067,93728.0,93710.0,0.19517147]
[1767677750566,0.010671,93725.0,93706.0,0.010673]
[1767677750754,0.11786761,93723.0,93706.0,0.09072]
[1767677751061,0.10719661,93723.0,93706.0,0.09072]
[1767677752157,0.0912539,93723.0,93706.0,0.09072]
[1767677752855,0.0912539,93723.0,93710.0,0.09848507]
[1767677753062,0.01594271,93726.0,93710.0,0.09848507]
[1767677755362,0.02661371,93726.0,93710.0,0.09848507]
[1767677755563,0.02669152,93726.0,93710.0,0.09848507]
[1767677755756,0.02669152,93726.0,93708.0,0.00704098]
[1767677755957,0.02669152,93726.0,93710.0,0.09848507]
[1767677756164,0.0912539,93728.0,93716.0,0.09848507]
[1767677757163,0.01067,93730.0,93716.0,0.09848507]
[1767677757363,0.01067,93730.0,93720.0,0.09848507]
[1767677757962,0.11289389,93733.0,93720.0,0.09848507]
[1767677757963,0.02669052,93732.0,93720.0,0.09848507]
[1767677758759,0.01067,93730.0,93720.0,0.09848507]
[1767677758961,0.01602052,93729.0,93720.0,0.09848507]
[1767677759163,0.01602052,93729.0,93712.0,0.010672]
[1767677759862,0.09072,93728.0,93712.0,0.010672]
[1767677760259,0.10754337,93730.0,93712.0,0.010672]
[1767677760455,0.10754337,93730.0,93710.0,0.10187026]
[1767677760661,0.09072,93729.0,93710.0,0.10187026]
[1767677760866,0.09072,93729.0,93711.0,0.09125485]
[1767677761366,0.1106727,93727.0,93706.0,0.093393]
[1767677761566,0.010671,93726.0,93708.0,0.010672]
[1767677761767,0.010671,93726.0,93710.0,0.09848507]
[1767677762169,0.1106727,93727.0,93710.0,0.09848507]
[1767677762666,0.09455706,93727.0,93710.0,0.09848507]
[1767677764864,0.10139,93729.0,93711.0,0.00298093]
[1767677765162,0.09072,93729.0,93712.0,0.010672]
[1767677765367,0.09072,93729.0,93711.0,0.00298093]
[1767677765869,0.01067,93728.0,93710.0,0.18859253]
[1767677766470,0.01067,93728.0,93710.0,0.09010746]
[1767677768573,0.09072,93729.0,93711.0,0.010672]
[1767677768871,0.10139,93729.0,93711.0,0.010672]
[1767677769170,0.10139,93729.0,93710.0,0.08010746]
[1767677770263,0.01067,93727.0,93710.0,0.08010746]
[1767677771671,0.010671,93725.0,93708.0,0.00282419]
[1767677775880,0.010671,93725.0,93707.0,0.010673]
[1767677776481,0.010671,93725.0,93707.0,0.01221561]
[1767677776684,0.01611564,93726.0,93706.0,0.08272]
[1767677776685,0.010671,93721.0,93706.0,0.08272]
[1767677777885,0.01611564,93723.0,93706.0,0.093393]
[1767677778070,0.01611564,93723.0,93706.0,0.08272]
[1767677778672,0.09455706,93720.0,93706.0,0.08272]
[1767677778876,0.1106727,93717.0,93706.0,0.08272]
[1767677779181,0.09455706,93717.0,93706.0,0.08272]
[1767677781289,0.10522906,93717.0,93706.0,0.08272]
[1767677781484,0.010672,93715.0,93706.0,0.08272]
[1767677781685,0.1106727,93715.0,93706.0,0.08272]
[1767677781896,0.09455706,93715.0,93706.0,0.08272]
[1767677782082,0.02678664,93718.0,93706.0,0.08272]
[1767677782277,0.01611564,93718.0,93706.0,0.08272]
[1767677782478,0.01611564,93715.0,93698.0,0.15075155]
[1767677782778,0.01611564,93709.0,93697.0,0.08343509]
[1767677783088,0.010673,93708.0,93694.0,0.09072]
[1767677783290,0.010673,93708.0,93694.0,0.07472]
[1767677783490,0.010673,93708.0,93694.0,0.15917364]
[1767677783792,0.09455706,93710.0,93694.0,0.15917364]
[1767677784592,0.1106727,93710.0,93694.0,0.15917364]
[1767677784894,0.09455706,93710.0,93694.0,0.15917364]
[1767677785197,0.09455706,93710.0,93695.0,0.010674]
[1767677785391,0.01611564,93713.0,93695.0,0.010674]
[1767677786898,0.01611564,93713.0,93694.0,0.16224395]
[1767677787102,0.09455706,93715.0,93695.0,0.00291328]
[1767677787304,0.09455706,93715.0,93697.0,0.010674]
[1767677789803,0.1106727,93714.0,93697.0,0.010674]
[1767677790096,0.09455706,93714.0,93697.0,0.010674]
[1767677790298,0.09072,93716.0,93699.0,0.010674]
[1767677790602,0.01611564,93715.0,93696.0,0.010674]
[1767677790906,0.01611564,93715.0,93695.0,0.09010746]
[1767677791202,0.01611564,93715.0,93696.0,0.00234504]
[1767677791599,0.010671,93722.0,93704.0,0.010673]
[1767677791804,0.09072,93716.0,93704.0,0.010673]
[1767677792403,0.09072,93716.0,93703.0,0.00234504]
[1767677792905,0.09072,93716.0,93701.0,0.010673]
[1767677793807,0.09072,93716.0,93703.0,0.010673]
[1767677795400,0.09072,93716.0,93700.0,0.01326283]
[1767677795594,0.09072,93716.0,93700.0,0.010673]
[1767677796607,0.20484892,93716.0,93697.0,0.01282481]
[1767677796807,0.01566595,93715.0,93697.0,0.010674]
[1767677797002,0.01566595,93715.0,93699.0,0.010674]
[1767677798808,0.01566595,93715.0,93695.0,0.09592256]
[1767677799306,0.01566595,93715.0,93699.0,0.010674]
[1767677806313,0.09072,93721.0,93708.0,0.010672]
[1767677806507,0.11412892,93727.0,93705.0,0.07935517]
[1767677806814,0.11412892,93725.0,93705.0,0.07935517]
[1767677807010,0.11412892,93724.0,93698.0,0.010674]
[1767677807310,0.01566595,93723.0,93698.0,0.010674]
[1767677807517,0.11412892,93722.0,93698.0,0.010674]
[1767677807717,0.11412892,93722.0,93694.0,0.15917364]
[1767677808015,0.09072,93726.0,93696.0,0.010674]
[1767677808016,0.11412892,93721.0,93696.0,0.010674]
[1767677808309,0.09846297,93719.0,93702.0,0.010673]
[1767677808515,0.11412892,93719.0,93702.0,0.010673]
[1767677809116,0.11412892,93716.0,93699.0,0.010674]
[1767677809306,0.09072,93726.0,93694.0,0.15917364]
[1767677809307,0.11412892,93707.0,93694.0,0.15917364]
[1767677809508,0.11412892,93704.0,93694.0,0.15917364]
[1767677809713,0.09846297,93704.0,93694.0,0.15917364]
[1767677809914,0.01566595,93708.0,93694.0,0.15917364]
[1767677810401,0.01566595,93707.0,93694.0,0.15917364]
[1767677810603,0.11412892,93705.0,93694.0,0.15917364]
[1767677810815,0.01566595,93704.0,93694.0,0.15917364]
[1767677811017,0.01566595,93704.0,93694.0,0.07472]
[1767677811418,0.01566595,93698.0,93689.0,0.00213473]
[1767677811619,0.09846297,93699.0,93689.0,0.00213473]
[1767677814221,0.09846297,93699.0,93687.0,0.08385473]
[1767677819024,0.09846297,93699.0,93688.0,0.010675]
[1767677819609,0.01398873,93707.0,93687.0,0.08385473]
[1767677820015,0.10473434,93707.0,93687.0,0.08385473]
[1767677820217,0.10473434,93712.0,93688.0,0.09628054]
[1767677820416,0.10473434,93712.0,93694.0,0.010674]
[1767677820813,0.10473434,93711.0,93694.0,0.010674]
[1767677821626,0.10473434,93711.0,93688.0,0.09628054]
[1767677821627,0.10473434,93711.0,93696.0,0.010674]
[1767677821928,0.10876453,93708.0,93688.0,0.08995454]
[1767677822426,0.10876453,93708.0,93695.0,0.010674]
[1767677822928,0.10876453,93708.0,93697.0,0.010674]
[1767677823424,0.09072,93714.0,93701.0,0.010673]
[1767677823629,0.01433712,93715.0,93695.0,0.09621064]
[1767677823831,0.01433712,93720.0,93695.0,0.09621064]
[1767677824625,0.01433712,93718.0,93695.0,0.09621064]
[1767677825033,0.01433712,93718.0,93695.0,0.09885836]
[1767677825331,0.01433712,93718.0,93696.0,0.00264772]
[1767677825520,0.01433712,93718.0,93697.0,0.09072]
[1767677827130,0.01433712,93718.0,93701.0,0.010673]
[1767677828534,0.01433712,93717.0,93708.0,0.09844748]
[1767677829229,0.01433712,93716.0,93701.0,0.010673]
[1767677829935,0.01433712,93716.0,93700.0,0.09612048]
[1767677830141,0.01433712,93716.0,93701.0,0.010673]
[1767677831642,0.01433712,93714.0,93700.0,0.09844748]
[1767677832337,0.01433712,93714.0,93701.0,0.010673]
[1767677832537,0.01433712,93718.0,93701.0,0.010673]
[1767677833846,0.01433712,93714.0,93698.0,0.010674]
[1767677834035,0.01433712,93714.0,93700.0,0.10912048]
[1767677834636,0.09442741,93715.0,93700.0,0.10912048]
[1767677835540,0.09442741,93715.0,93700.0,0.010673]
[1767677835740,0.09442741,93715.0,93700.0,0.10912048]
[1767677836739,0.10876453,93715.0,93700.0,0.10912048]
[1767677837437,0.10876453,93715.0,93700.0,0.09844748]
[1767677837638,0.10876453,93715.0,93700.0,0.08044748]
[1767677838341,0.10876453,93715.0,93701.0,0.010673]
[1767677839839,0.10876453,93715.0,93700.0,0.08044748]
[1767677840745,0.01433712,93714.0,93700.0,0.08044748]
[1767677843140,0.01433712,93714.0,93700.0,0.09844748]
[1767677845144,0.010672,93713.0,93700.0,0.09844748]
[1767677845438,0.010672,93713.0,93700.0,0.07244748]
[1767677846350,0.010672,93709.0,93700.0,0.07244748]
[1767677846647,0.010672,93709.0,93699.0,0.09844748]
[1767677846947,0.01433712,93711.0,93699.0,0.09844748]
[1767677847146,0.01433712,93711.0,93697.0,0.09072]
[1767677847348,0.01433712,93711.0,93700.0,0.09844748]
[1767677847849,0.010672,93712.0,93700.0,0.09844748]
[1767677848053,0.11943653,93715.0,93700.0,0.09844748]
[1767677849552,0.010672,93713.0,93697.0,0.09072]
[1767677849754,0.02500912,93713.0,93700.0,0.09844748]
[1767677850349,0.010672,93713.0,93700.0,0.09844748]
[1767677853154,0.010672,93713.0,93700.0,0.09044748]
[1767677854656,0.010672,93713.0,93697.0,0.09072]
[1767677854852,0.010672,93710.0,93697.0,0.09072]
[1767677855060,0.010673,93708.0,93700.0,0.09844748]
[1767677855352,0.010673,93708.0,93697.0,0.09072]
[1767677856156,0.010673,93708.0,93698.0,0.09844748]
[1767677856855,0.010673,93708.0,93697.0,0.09072]
[1767677857061,0.010673,93708.0,93698.0,0.09844748]
[1767677857261,0.010673,93708.0,93697.0,0.09072]
[1767677857454,0.010673,93708.0,93698.0,0.09844748]
[1767677859363,0.01514041,93714.0,93698.0,0.09844748]
[1767677860059,0.01514041,93714.0,93700.0,0.09844748]
[1767677860265,0.010672,93712.0,93700.0,0.09844748]
[1767677860861,0.010672,93712.0,93700.0,0.08544748]
[1767677862563,0.010672,93712.0,93697.0,0.09072]
[1767677862764,0.010672,93712.0,93700.0,0.09844748]
[1767677863561,0.010672,93710.0,93700.0,0.09844748]
[1767677864263,0.09442741,93715.0,93700.0,0.09844748]
[1767677864665,0.010672,93711.0,93700.0,0.09844748]
[1767677865267,0.010672,93709.0,93700.0,0.09844748]
[1767677866165,0.010672,93712.0,93700.0,0.09844748]
[1767677868562,0.010672,93712.0,93700.0,0.07544748]
[1767677868865,0.010672,93712.0,93697.0,0.101394]
[1767677869066,0.010672,93712.0,93700.0,0.09844748]
[1767677869468,0.010672,93709.0,93700.0,0.09844748]
[1767677869764,0.010672,93709.0,93697.0,0.09072]
[1767677869765,0.01514041,93718.0,93697.0,0.09072]
[1767677869970,0.01514041,93709.0,93697.0,0.08848347]
[1767677870269,0.010673,93702.0,93697.0,0.08848347]
[1767677871267,0.01514041,93709.0,93687.0,0.09826952]
[1767677871268,0.010674,93700.0,93687.0,0.09826952]
[1767677871472,0.01514041,93703.0,93688.0,0.09072]
[1767677872065,0.010673,93702.0,93688.0,0.09072]
[1767677872264,0.010674,93700.0,93688.0,0.09072]
[1767677876266,0.010674,93700.0,93688.0,0.06772]
[1767677877576,0.01367573,93707.0,93688.0,0.06772]
[1767677879178,0.010673,93703.0,93688.0,0.06772]
[1767677880276,0.010673,93701.0,93688.0,0.06772]
[1767677881282,0.010674,93699.0,93688.0,0.06772]
[1767677881980,0.010674,93695.0,93688.0,0.06772]
[1767677883076,0.010674,93693.0,93682.0,0.00332893]
[1767677883381,0.01452902,93699.0,93682.0,0.09404893]
[1767677883885,0.010674,93693.0,93682.0,0.09404893]
[1767677884085,0.010675,93691.0,93682.0,0.06104893]
[1767677884286,0.010675,93689.0,93679.0,0.15011396]
[1767677884586,0.010675,93689.0,93674.0,0.18252207]
[1767677884778,0.010675,93689.0,93675.0,0.09180207]
[1767677885286,0.01452902,93696.0,93675.0,0.09180207]
[1767677885477,0.010675,93687.0,93675.0,0.09180207]
[1767677885674,0.010675,93687.0,93675.0,0.17561524]
[1767677885980,0.01452902,93696.0,93675.0,0.17561524]
[1767677886173,0.11070788,93696.0,93675.0,0.09180207]
[1767677886381,0.01452902,93695.0,93675.0,0.09180207]
[1767677887083,0.010675,93687.0,93675.0,0.09180207]
[1767677887288,0.01452902,93689.0,93667.0,0.09180207]
[1767677887488,0.010675,93683.0,93670.0,0.19024955]
[1767677887794,0.010675,93686.0,93671.0,0.09180207]
[1767677887989,0.010675,93689.0,93671.0,0.09180207]
[1767677888393,0.010675,93689.0,93671.0,0.10247907]
[1767677889198,0.010675,93689.0,93671.0,0.09180207]
[1767677889585,0.010675,93687.0,93671.0,0.09180207]
[1767677890091,0.01452902,93695.0,93671.0,0.09180207]
[1767677890285,0.010675,93689.0,93671.0,0.09180207]
[1767677891700,0.010675,93689.0,93671.0,0.07780207]
[1767677893198,0.01452902,93695.0,93671.0,0.07780207]
[1767677893399,0.010675,93687.0,93671.0,0.07780207]
[1767677898806,0.01452902,93698.0,93671.0,0.07780207]
[1767677899009,0.010675,93689.0,93671.0,0.08847907]
[1767677899411,0.010675,93689.0,93671.0,0.010677]
[1767677900111,0.010675,93689.0,93670.0,0.08468879]
[1767677900302,0.010675,93689.0,93668.0,0.010677]
[1767677900608,0.010675,93690.0,93671.0,0.010677]
[1767677901308,0.010674,93693.0,93668.0,0.09180207]
[1767677901607,0.10524902,93700.0,93675.0,0.09180207]
[1767677901812,0.01452902,93699.0,93675.0,0.09180207]
[1767677902312,0.18689886,93700.0,93675.0,0.09180207]
[1767677903012,0.20142788,93700.0,93675.0,0.09180207]
[1767677903210,0.010674,93695.0,93675.0,0.09180207]
[1767677903813,0.010674,93695.0,93677.0,0.10247807]
[1767677904712,0.09076,93696.0,93680.0,0.09180207]
[1767677906609,0.09076,93703.0,93687.0,0.09180207]
[1767677906814,0.09076,93705.0,93689.0,0.09180207]
[1767677907112,0.09076,93705.0,93689.0,0.07680207]
[1767677907302,0.010673,93704.0,93689.0,0.07680207]
[1767677907812,0.09076,93705.0,93689.0,0.07680207]
[1767677908008,0.49076,93705.0,93689.0,0.07680207]
[1767677909412,0.501433,93705.0,93689.0,0.07680207]
[1767677911316,0.410673,93705.0,93689.0,0.07680207]
[1767677911614,0.010672,93712.0,93694.0,0.09822367]
[1767677911814,0.09076,93709.0,93694.0,0.09822367]
[1767677914319,0.09076,93709.0,93689.0,0.09822367]
[1767677914821,0.09076,93709.0,93689.0,0.07822367]
[1767677915121,0.010673,93706.0,93689.0,0.07822367]
[1767677915609,0.010673,93707.0,93689.0,0.08889867]
[1767677918423,0.010673,93707.0,93689.0,0.07822367]
[1767677918622,0.010674,93699.0,93687.0,0.09076]
[1767677918823,0.11375668,93700.0,93687.0,0.09076]
[1767677919122,0.010674,93693.0,93673.0,0.010676]
[1767677919324,0.010675,93690.0,93674.0,0.09076]
[1767677919624,0.010674,93693.0,93674.0,0.09076]
[1767677919923,0.010674,93693.0,93674.0,0.18898367]
[1767677920108,0.010674,93693.0,93675.0,0.09822367]
[1767677921312,0.010674,93696.0,93675.0,0.09822367]
[1767677922111,0.010674,93696.0,93675.0,0.10889967]
[1767677922317,0.09076,93699.0,93681.0,0.10889967]
[1767677922524,0.09076,93699.0,93681.0,0.09089967]
[1767677923622,0.101434,93699.0,93681.0,0.09089967]
[1767677926421,0.11568956,93699.0,93681.0,0.09089967]
[1767677929428,0.010674,93697.0,93681.0,0.09089967]
[1767677930230,0.010674,93697.0,93681.0,0.06889967]
[1767677931132,0.10501556,93699.0,93681.0,0.06889967]
[1767677931133,0.010674,93695.0,93681.0,0.06889967]
[1767677931633,0.010674,93693.0,93674.0,0.101436]
[1767677931934,0.010675,93691.0,93674.0,0.09076]
[1767677932131,0.01425556,93697.0,93671.0,0.06984525]
[1767677932132,0.010675,93690.0,93672.0,0.101437]
[1767677932336,0.010675,93690.0,93673.0,0.09822367]
[1767677932933,0.010675,93690.0,93672.0,0.010677]
[1767677933237,0.010675,93686.0,93673.0,0.09076]
[1767677933440,0.010675,93684.0,93672.0,0.09076]
[1767677935642,0.01425556,93688.0,93672.0,0.09076]
[1767677935946,0.09950112,93689.0,93672.0,0.09076]
[1767677936440,0.01356853,93688.0,93672.0,0.09076]
[1767677936639,0.11263433,93687.0,93672.0,0.09076]
[1767677937040,0.0990658,93687.0,93672.0,0.09076]
[1767677937246,0.010675,93685.0,93672.0,0.09076]
[1767677937948,0.010675,93685.0,93672.0,0.07676]
[1767677938847,0.010675,93686.0,93672.0,0.07676]
[1767677939146,0.010675,93689.0,93672.0,0.07676]
[1767677940249,0.010675,93687.0,93672.0,0.07676]
[1767677941445,0.010675,93683.0,93672.0,0.07676]
[1767677942352,0.010675,93687.0,93672.0,0.07676]
[1767677942547,0.010675,93690.0,93672.0,0.07676]
[1767677942753,0.010675,93690.0,93672.0,0.087437]
[1767677942952,0.010675,93688.0,93672.0,0.07676]
[1767677943157,0.10391115,93690.0,93672.0,0.07676]
[1767677943350,0.10391115,93685.0,93672.0,0.07676]
[1767677944053,0.0903126,93685.0,93672.0,0.07676]
[1767677944352,0.0903126,93690.0,93672.0,0.07676]
[1767677945154,0.010675,93687.0,93672.0,0.07676]
[1767677945453,0.010675,93688.0,93672.0,0.07676]
[1767677945655,0.010675,93688.0,93672.0,0.05976]
[1767677945854,0.010675,93689.0,93672.0,0.05976]
[1767677946258,0.10391115,93692.0,93671.0,0.05916825]
[1767677946448,0.10391115,93691.0,93670.0,0.17847965]
[1767677946952,0.10391115,93691.0,93670.0,0.23619245]
[1767677947154,0.010675,93686.0,93670.0,0.23619245]
[1767677947456,0.010675,93684.0,93670.0,0.23619245]
[1767677948257,0.010675,93687.0,93670.0,0.24686945]
[1767677948649,0.010675,93687.0,93670.0,0.23619245]
[1767677949056,0.010675,93685.0,93670.0,0.23619245]
[1767677950558,0.010675,93685.0,93670.0,0.33471338]
[1767677953358,0.010675,93685.0,93670.0,0.31671338]
[1767677953960,0.010675,93686.0,93670.0,0.31671338]
[1767677955269,0.010675,93684.0,93670.0,0.31671338]
[1767677956970,0.010675,93684.0,93670.0,0.21819245]
[1767677957170,0.010675,93684.0,93670.0,0.31671338]
[1767677958270,0.09076,93689.0,93670.0,0.21819245]
[1767677958466,0.09076,93689.0,93670.0,0.09852093]
[1767677958467,0.010676,93680.0,93670.0,0.09852093]
[1767677959161,0.010676,93680.0,93665.0,0.18349152]
[1767677959362,0.010676,93680.0,93665.0,0.24176519]
[1767677959657,0.010676,93680.0,93670.0,0.09852093]
[1767677959858,0.1810726,93689.0,93670.0,0.09852093]
[1767677960076,0.010676,93678.0,93670.0,0.09852093]
[1767677960376,0.010676,93678.0,93666.0,0.09273152]
[1767677960565,0.010676,93678.0,93668.0,0.09852093]
[1767677960962,0.010676,93681.0,93668.0,0.09852093]
[1767677961173,0.010676,93681.0,93668.0,0.09152093]
[1767677961669,0.010675,93684.0,93669.0,0.09273152]
[1767677961873,0.010676,93682.0,93669.0,0.09273152]
[1767677962274,0.09076,93689.0,93673.0,0.09273152]
[1767677962579,0.09076,93688.0,93673.0,0.10340752]
[1767677962973,0.09076,93688.0,93673.0,0.09273152]
[1767677963168,0.010675,93689.0,93673.0,0.09273152]
[1767677963476,0.09076,93688.0,93673.0,0.09273152]
[1767677963778,0.09076,93688.0,93678.0,0.09852093]
[1767677963978,0.010675,93687.0,93678.0,0.09852093]
[1767677964971,0.09076,93688.0,93678.0,0.09852093]
[1767677967080,0.09076,93688.0,93673.0,0.09273152]
[1767677967380,0.010675,93689.0,93673.0,0.09273152]
[1767677967580,0.09076,93689.0,93673.0,0.09273152]
[1767677967772,0.010674,93695.0,93680.0,0.09273152]
[1767677969177,0.09076,93696.0,93680.0,0.09273152]
[1767677970279,0.02427155,93702.0,93681.0,0.10340752]
[1767677970484,0.0903126,93704.0,93690.0,0.09852093]
[1767677970673,0.08182879,93703.0,93690.0,0.09852093]